Cogmind - Beta 16 @@@ ROGUE MODE // 2025.10.24 @ 00:49:31 Player: jumpy Result: Escaped! Performance ------------- Evolutions (9) 4500 Regions Visited (21) 4200 Robots Destroyed (118) 590 Value Destroyed (4481) 4481 Prototype IDs (34) 680 Alien Tech Used (2) 400 Bonus (4234) 4234 TOTAL SCORE: 19085 Bonus ------- High Alert Combat Kills 160 Follower Combat Kills 840 Met Zhirov 300 Win 3000 Friendly Fire -66 Cogmind --------- Core Integrity 1548/1600 Matter 153/300 Energy 346/350 System Corruption 0% Temperature Cool (8) Movement Hovering (55) Location To Epsilon Eridani Parts ------- > --- POWER (2) -------- Quantum Reactor > --- PROPULSION (8) --- Combat Gravmag System Cooled Antigrav System Experimental Gyrokinetic Inverter > --- UTILITY (11) ----- Advanced Visual Processing Unit Advanced Targeting Computer Experimental Transmission Jammer Hacking Suite > --- WEAPON (4) ------- Enhanced Nova Cannon Improved Plasma Cutter > --- INVENTORY (5) ---- Light Quantum Reactor Linear Accelerator Peak State ------------ > --- POWER ------------ Neutrino Core Light Neutrino Core > --- PROPULSION ------- Gyrokinetic Inverter Cooled Gravmag System Cooled Gravmag System Cooled Gravmag System Combat Gravmag System Combat Gravmag System > --- UTILITY ---------- Advanced Cooling System Advanced Cooling System Advanced Visual Processing Unit Improved Sensor Array Advanced Sensor Array Layered Light Armor Plating Advanced Force Field Hacking Suite > --- WEAPON ----------- Variable Charge Gun Variable Charge Gun Quantum Rifle Quantum Rifle > --- INVENTORY -------- Transdimensional Reconstructor Cooled Plasma Rifle Neutron Missile Launcher Improved Plasma Cutter [Rating: 121] Favorites ----------- Power Neutrino Core Engine Ion Engine Power Core Neutrino Core Reactor Light Quantum Reactor Propulsion Light Treads Treads Light Treads Leg Aluminum Leg Wheel Compact Wheel Hover Unit Gyrokinetic Inverter Flight Unit Field Propulsion Array Utility Advanced Cooling System Device Advanced Cooling System Storage Large Storage Unit Processor Advanced Visual Processing Unit Hackware Hacking Suite Protection Improved Medium Armor Plating Weapon Gatling Laser Energy Gun Gatling Laser Energy Cannon Enhanced Nova Cannon Ballistic Gun Assault Rifle Ballistic Cannon Advanced Assault Cannon Launcher Neutron Missile Launcher Special Weapon Improved Plasma Cutter Impact Weapon Powered Hammer Slashing Weapon Makeshift Sword Build | -11 -10 -10 -10 -9 -8 -7 -6 -6 -6 -5 -5 -5 -5 -4 -4 -4 -4 -3 -3 -2 -1 ------- Run | Yrd Mat Min Exi Min Mat Fac Fac Low Low Fac Was Fac Ext Fac Upp Upp Zhi Pro Res Res Acc Slots Evolved 18 | . . . . . 4 2 2 . . 2 . . . 2 . . . . 2 2 2 Power 1 | . . . . . . . . . . 1 . . . . . . . . . . . Propulsion 6 | . . . . . 1 1 1 . . . . . . 1 . . . . 1 . 1 Utility 9 | . . . . . 2 . 1 . . 1 . . . 1 . . . . 1 2 1 Weapon 2 | . . . . . 1 1 . . . . . . . . . . . . . . . Parts Attached 162 | 7 4 7 . 5 4 26 19 4 . 23 4 9 7 7 4 2 5 1 6 18 . Power 23 | 1 1 . . 2 2 3 2 . . 2 . . 3 1 . . . 1 2 3 . Engine 12 | 1 1 . . 2 2 3 2 . . . . . 1 . . . . . . . . Core 6 | . . . . . . . . . . 2 . . 2 1 . . . 1 . . . Reactor 5 | . . . . . . . . . . . . . . . . . . . 2 3 . Propulsion 46 | 2 1 3 . 1 . 5 9 1 . 8 . 4 1 2 . . 4 . 1 4 . Treads 9 | . . 2 . 1 . 4 . . . 2 . . . . . . . . . . . Leg 5 | 2 1 1 . . . . . . . 1 . . . . . . . . . . . Wheel 8 | . . . . . . 1 5 . . 2 . . . . . . . . . . . Hover 21 | . . . . . . . 2 . . 3 . 4 1 2 . . 4 . 1 4 . Flight 3 | . . . . . . . 2 1 . . . . . . . . . . . . . Utility 41 | 2 1 . . 1 2 4 6 2 . 3 . 5 1 2 . 2 1 . 2 7 . Device 22 | 1 . . . 1 . 2 4 . . 3 . 1 . 2 . 1 1 . 1 5 . Storage 3 | 1 1 . . . . . . . . . . . . . . . . . . 1 . Processor 6 | . . . . . 1 . 1 2 . . . 1 . . . . . . . 1 . Hackware 3 | . . . . . . . . . . . . 2 . . . . . . 1 . . Protection 7 | . . . . . 1 2 1 . . . . 1 1 . . 1 . . . . . Artifact . | . . . . . . . . . . . . . . . . . . . . . . Weapon 52 | 2 1 4 . 1 . 14 2 1 . 10 4 . 2 2 4 . . . 1 4 . Energy Gun 33 | 1 1 2 . 1 . 11 1 . . 5 4 . 2 . 2 . . . 1 2 . Energy Cannon 4 | . . . . . . . . . . 3 . . . . . . . . . 1 . Ballistic Gun 7 | 1 . 2 . . . . 1 . . 2 . . . 1 . . . . . . . Ballistic Cannon 2 | . . . . . . 1 . . . . . . . . . . . . . 1 . Launcher 2 | . . . . . . 1 . . . . . . . 1 . . . . . . . Special Weapon 2 | . . . . . . . . . . . . . . . 2 . . . . . . Impact Weapon 1 | . . . . . . 1 . . . . . . . . . . . . . . . Slashing Weapon 1 | . . . . . . . . 1 . . . . . . . . . . . . . Piercing Weapon . | . . . . . . . . . . . . . . . . . . . . . . Special Melee Weapon . | . . . . . . . . . . . . . . . . . . . . . . Unidentified Prototypes 20 | . . . . . 1 2 2 . . 2 . . . 3 1 . 3 . 1 5 . Corrupted Parts 1 | . . . . . . . . . . . . . 1 . . . . . . . . System Corruption 2 | . . . . . . . . . . . . . 2 . . . . . . . . Parts Lost 59 | . 1 2 . 1 . 13 4 1 . 1 . 1 5 1 . . . 1 8 18 2 Power 10 | . . . . . . 1 1 . . . . . 2 . . . . 1 2 2 1 Propulsion 19 | . . 1 . . . 6 2 . . 1 . . . 1 . . . . . 8 . Utility 12 | . . . . 1 . 1 1 . . . . 1 1 . . . . . 3 3 1 Weapon 18 | . 1 1 . . . 5 . 1 . . . . 2 . . . . . 3 5 . Highest Loss Streak 7 | . 1 2 . 1 . 3 4 1 . 1 . 1 2 1 . . . 1 5 7 2 To Critical Strikes . | . . . . . . . . . . . . . . . . . . . . . . Average Backups 7 | 3 6 9 11 11 10 14 3 4 5 2 5 4 4 4 5 5 4 4 3 2 2 Power . | . . . 1 1 1 2 1 2 2 . . . . 1 1 1 1 . . . 1 Propulsion 1 | 1 4 4 3 3 2 1 . . . . . . 1 1 1 1 . . . . . Utility 2 | . 2 3 5 5 5 4 2 2 2 . 1 1 . . . . . . . . . Weapon 2 | . . 1 2 1 1 5 . . 1 1 3 3 2 2 2 2 2 2 2 . 1 Tool/Special . | . . . . . . . . . . . . . . . . . . . . . . Unused Backups 23 | 2 . 1 . 3 1 12 . 1 . . . 1 . . 1 . . . . . 1 Power 4 | . . . . 1 1 . . . . . . . . . 1 . . . . . 1 Propulsion 2 | . . 1 . 1 . . . . . . . . . . . . . . . . . Utility 7 | 1 . . . . . 6 . . . . . . . . . . . . . . . Weapon 9 | 1 . . . 1 . 5 . 1 . . . 1 . . . . . . . . . Tool/Special 1 | . . . . . . 1 . . . . . . . . . . . . . . . Average Slot Usage (%) 79 | . 95 94 100 99 88 94 42 13 20 45 57 81 89 92 93 94 96 100 85 64 46 Engine 4 | . 14 14 14 14 9 6 4 . . . . . . 1 . . . . . . . Core 3 | . . . . . . . . . . 3 11 11 8 8 10 10 10 10 4 . . Treads 10 | . . 13 28 28 27 26 . . . 2 . . . . . . . . . . . Leg 1 | . 28 14 . . . . . . . 2 . . . . . . . . . . . Wheel 1 | . . . . . . . 11 . . 4 . . . . . . . . . . . Hover 9 | . . . . . . . 2 . . 2 11 20 23 25 26 26 28 31 29 25 12 Device 11 | . 14 14 14 13 9 12 13 . . 9 5 7 11 14 15 19 20 21 18 4 9 Storage 4 | . 14 14 14 14 9 6 . . . . . . . . . . . . . 1 2 Processor 4 | . . . . . 8 1 . 7 13 10 5 5 11 10 10 6 5 5 4 6 8 Hackware 1 | . . . . . . . . . . . . 4 5 5 5 5 5 5 5 6 4 Protection 3 | . . . . . 8 6 2 . . . . 4 4 5 5 5 5 5 3 . . Energy Gun 16 | . 15 14 14 14 9 27 3 . . 2 22 23 19 19 20 21 21 20 12 8 . Ballistic Gun 2 | . 7 8 14 14 9 . 1 . . 1 . . . . . . . . . . . Peak Build Rating 121 | 7 7 8 8 15 23 44 48 13 11 63 58 83 87 100 104 111 117 118 121 118 89 Average Rating 50 | 5 6 7 8 10 21 39 25 9 11 37 57 71 81 95 98 108 112 116 112 95 80 On Entrance 49 | . 7 6 8 8 15 23 1 1 11 11 58 58 83 81 98 102 111 117 116 90 89 Avg Prop Armor Cover (%) 11 | . . . . . . . . . . 11 . . . . . . . . . . . Naked Turns 194 | . . . . . . 8 169 17 . . . . . . . . . . . . . Heaviest Build 78 | 14 27 30 30 32 42 58 30 2 . 39 37 44 53 53 54 69 68 68 78 68 60 Greatest Support 92 | 20 20 40 40 48 68 90 80 4 4 54 22 52 55 69 69 69 73 73 83 92 57 Greatest Overweight (x) 5 | . 1 2 . . . 5 1 . . 4 1 1 2 . . . 1 . 1 1 1 Average Overweight (x) . | . . . . . . . . . . . 1 . . . . . . . . . . Largest Inventory Capacity 15 | 8 15 15 15 15 15 15 5 5 5 5 5 5 5 5 5 5 5 5 5 10 10 Average Capacity 9 | 7 8 15 15 15 15 14 5 5 5 5 5 5 5 5 5 5 5 5 5 7 8 Most Carried 15 | 6 8 15 15 15 15 15 5 5 5 5 5 5 5 5 5 5 5 5 4 3 3 Average Carried 7 | 3 6 10 15 14 12 14 3 4 5 2 5 4 4 4 5 5 4 4 3 2 2 Final Capacity 15 | 8 15 15 15 15 15 5 5 5 5 5 5 5 5 5 5 5 5 5 5 10 5 Final Carried 15 | 5 7 15 15 15 15 5 4 5 5 5 5 4 5 5 5 5 5 4 3 3 2 Class Distribution -------------------- 40% | Mutant 12% | Tank 12% | Scavenger-Tank 7% | Scavenger-Skirmisher 5% | Gunner 3% | Derelict-Skirmisher Dominant Class ---------------- Mutant | -10/Materials Mutant | -10/Mines Mutant | -10/Exiles Mutant | -9/Mines Mutant | -8/Materials Scavenger-Tank | -7/Factory Mutant | -6/Factory Mutant | -6/Lower Caves Mutant | -6/Lower Caves Mutant | -5/Factory Derelict-Skirmisher | -5/Waste Scientist-Tank | -5/Factory Derelict-Gunner | -5/Extension Scavenger-Skirmisher | -4/Factory Scavenger-Skirmisher | -4/Upper Caves Tank | -4/Upper Caves Tank | -4/Zhirov Tank | -3/Proximity Caves Tank | -3/Research Hacker-Skirmisher | -2/Research Infiltrator-Mutant | -1/Access Resources | -11 -10 -10 -10 -9 -8 -7 -6 -6 -6 -5 -5 -5 -5 -4 -4 -4 -4 -3 -3 -2 -1 ----------- Run | Yrd Mat Min Exi Min Mat Fac Fac Low Low Fac Was Fac Ext Fac Upp Upp Zhi Pro Res Res Acc Matter Collected 2485 | 327 96 74 . 97 68 440 369 90 . 198 42 130 139 85 34 63 40 16 . 177 . Remotely . | . . . . . . . . . . . . . . . . . . . . . . Salvage Created 5028 | 214 349 201 . 278 112 1389 546 74 . 287 . 75 788 85 27 228 40 149 . 186 . Parts 212 | 19 14 7 . 13 8 72 21 4 . 9 . 1 16 1 2 3 . 16 . 6 . Haulers Intercepted 3 | . . . . . . 3 . . . . . . . . . . . . . . . Recyclers Shooed 8 | . . . . 1 . 4 2 . . . . . 1 . . . . . . . . Parts Field Recycled . | . . . . . . . . . . . . . . . . . . . . . . Retrieved Matter . | . . . . . . . . . . . . . . . . . . . . . . Parts Self-Destructed 19 | . . . . . . . . 4 . . . . . . 2 3 . 10 . . . Prevented . | . . . . . . . . . . . . . . . . . . . . . . Parts Restored . | . . . . . . . . . . . . . . . . . . . . . . Kills | -11 -10 -10 -10 -9 -8 -7 -6 -6 -6 -5 -5 -5 -5 -4 -4 -4 -4 -3 -3 -2 -1 ------- Run | Yrd Mat Min Exi Min Mat Fac Fac Low Low Fac Was Fac Ext Fac Upp Upp Zhi Pro Res Res Acc Combat Hostiles Destroyed 88 | . 7 2 . 7 2 34 7 3 . 5 . 1 7 1 . 3 . 7 . 2 . Melee 5 | . . . . . . 1 . 3 . 1 . . . . . . . . . . . Guns 65 | . 7 2 . 7 2 21 7 . . 3 . 1 6 1 . 2 . 5 . 1 . Cannons 1 | . . . . . . . . . . . . . . . . . . . . 1 . AOE 10 | . . . . . . 8 . . . . . . . . . . . 2 . . . Classes Destroyed 16 | 2 1 1 . 1 1 6 . . . . . . 2 . 1 . . 1 . . . Worker 3 | . . . . . . 2 . . . . . . . . . . . . . 1 . Builder 3 | . . . . . . 2 1 . . . . . . . . . . . . . . Tunneler 9 | 7 . . . . . 2 . . . . . . . . . . . . . . . Hauler 3 | . . . . . . 3 . . . . . . . . . . . . . . . Recycler 11 | 1 1 1 . . 1 3 2 . . . . . 2 . . . . . . . . Drone 2 | . . . . . . . . . . . . . . . . . . 2 . . . Watcher 1 | . . . . . . . . . . . . . 1 . . . . . . . . Swarmer 22 | . . . . . 1 10 3 3 . . . . . . . . . 5 . . . Grunt 26 | . 7 . . 6 . 5 3 . . . . 1 2 . . 2 . . . . . Duelist 2 | . . . . 1 . . . . . . . . . . . 1 . . . . . Protector 1 | . . . . . . 1 . . . . . . . . . . . . . . . Sentry 15 | . . 2 . . 1 6 . . . 2 . . 3 1 . . . . . . . Hunter 7 | . . . . . . 3 . . . 1 . . 1 . . . . . . 2 . Programmer 12 | . . . . . . 9 1 . . 2 . . . . . . . . . . . Behemoth 1 | . . . . . . . . . . . . . 1 . . . . . . . . Tinkerer 1 | . . . . . . . . . . . . . . . 1 . . . . . . Best Kill Streak 8 | 4 3 2 . 2 1 8 5 3 . 2 . 1 4 1 . 3 . 4 . 1 . Combat Bots Only 6 | . 2 2 . 2 1 6 3 3 . 2 . 1 1 1 . 3 . 4 . 1 . Max Kills in Single Turn 3 | 1 1 1 . 1 1 3 2 1 . 1 . 1 1 1 1 1 . 2 . 1 . Gunslinging . | . . . . . . . . . . . . . . . . . . . . . . Exploded 3 | . . . . . . 3 . . . . . . . . . . . 1 . . . Melee 1 | . . . . . . 1 . 1 . 1 . . . . . . . . . . . Uniques/NPCs Destroyed . | . . . . . . . . . . . . . . . . . . . . . . Combat | -11 -10 -10 -10 -9 -8 -7 -6 -6 -6 -5 -5 -5 -5 -4 -4 -4 -4 -3 -3 -2 -1 -------- Run | Yrd Mat Min Exi Min Mat Fac Fac Low Low Fac Was Fac Ext Fac Upp Upp Zhi Pro Res Res Acc Hostile Shots Fired 951 | . 49 18 . 27 6 281 74 49 . 63 . 11 47 6 . 24 . 40 80 170 6 Missed 312 | . 13 4 . 6 3 94 22 17 . 17 . 5 14 . . 9 . 15 30 62 1 Hits 639 | . 36 14 . 21 3 187 52 32 . 46 . 6 33 6 . 15 . 25 50 108 5 Melee 4 | . . . . 3 . . 1 . . . . . . . . . . . . . . Projectile 635 | . 36 14 . 18 3 187 51 32 . 46 . 6 33 6 . 15 . 25 50 108 5 Critical Strikes 17 | . . . . . . 5 . 1 . 4 . . 1 . . 1 . . 2 3 . Damage Taken 11675 | . 472 206 . 308 24 2713 998 455 . 858 . 114 961 148 . 323 . 371 939 2675 110 Core 2805 | . 97 29 . 10 . 542 351 411 . 256 . 38 87 53 . 23 . 34 51 771 52 Absorbed by Shields 236 | . . . . . . . . . . . . . 40 . . . . 68 108 20 . Regen/Repaired (Parts) 15 | . . . . . . . . . . . 15 . . . . . . . . . . Core Remaining (%) 66 | 100 . . . 45 100 22 . . 10 . . . 61 . . . . 90 90 46 96 Volleys Fired 315 | 19 38 8 . 24 4 63 34 . . 17 . 5 36 3 2 8 2 7 10 26 9 Largest 4 | 2 2 2 . 2 2 4 2 . . 3 . 3 4 4 4 4 4 4 4 4 1 Hottest 638 | 60 80 80 . 100 100 320 105 . . 225 . 243 324 312 312 338 338 338 638 277 120 Shots Fired 694 | 37 67 14 . 48 8 145 59 . . 35 . 15 126 10 8 32 8 18 13 42 9 Gun 651 | 37 67 14 . 48 8 137 59 . . 25 . 15 126 10 8 32 8 16 13 28 . Cannon 32 | . . . . . . . . . . 10 . . . . . . . . . 13 9 Launcher 11 | . . . . . . 8 . . . . . . . . . . . 2 . 1 . Special . | . . . . . . . . . . . . . . . . . . . . . . Kinetic 102 | 19 22 4 . 24 4 . 25 . . 4 . . . . . . . . . . . Thermal 581 | 18 45 10 . 24 4 137 34 . . 31 . 15 126 10 8 32 8 16 13 41 9 Explosive 11 | . . . . . . 8 . . . . . . . . . . . 2 . 1 . Electromagnetic . | . . . . . . . . . . . . . . . . . . . . . . Robot Hit Streak 17 | 7 10 10 . 13 7 14 11 . . 17 . 7 12 6 10 11 13 4 . 4 2 Robot Miss Streak 8 | 5 3 1 . 4 2 8 4 . . 1 . 1 5 1 . 4 . 1 . 6 2 Penetration Max . | . . . . . . . . . . . . . . . . . . . . . . Secondary Targets 11 | . . 1 . 1 . 4 1 . . . . . 4 . . . . . . . . Max Gunslinging Chain 1 | . . 1 . 1 . 1 1 . . . . . 1 . . . . . . . . Shots Hit Robots 488 | 22 51 11 . 37 6 109 48 10 . 26 . 10 88 7 4 24 5 7 . 22 1 Core Hits 270 | 9 18 6 . 17 3 108 35 3 . 9 . 2 28 3 3 8 1 9 . 7 1 Critical Kills . | . . . . . . . . . . . . . . . . . . . . . . Critical Parts Destroyed . | . . . . . . . . . . . . . . . . . . . . . . Critical Strikes 13 | . . . . . . . . 2 . . . . 9 1 1 . . . . . . Burn 11 | . . . . . . . . . . . . . 9 1 1 . . . . . . Sever 2 | . . . . . . . . 2 . . . . . . . . . . . . . Melee Attacks 26 | . . . . . . 1 . 25 . . . . . . . . . . . . . Impact 1 | . . . . . . 1 . . . . . . . . . . . . . . . Slashing 25 | . . . . . . . . 25 . . . . . . . . . . . . . Piercing . | . . . . . . . . . . . . . . . . . . . . . . Sneak Attacks . | . . . . . . . . . . . . . . . . . . . . . . Combat Hostiles . | . . . . . . . . . . . . . . . . . . . . . . Follow-up Attacks . | . . . . . . . . . . . . . . . . . . . . . . Damage Inflicted 12906 | 254 628 116 . 542 134 4398 1070 371 . 734 . 234 2081 170 147 602 93 474 . 817 41 Guns 9969 | 254 628 116 . 542 122 2821 1062 . . 465 . 234 2073 170 147 602 93 231 . 409 . Cannons 650 | . . . . . . . . . . 264 . . . . . . . . . 345 41 Explosions 1736 | . . . . . . 1473 . . . . . . . . . . . 243 . 20 . Melee 371 | . . . . . . . . 371 . . . . . . . . . . . . . Ramming 180 | . . . . . 12 104 8 . . 5 . . 8 . . . . . . 43 . Kinetic 925 | 136 245 17 . 195 22 . 310 . . . . . . . . . . . . . . Thermal 9934 | 118 383 99 . 347 100 3061 752 . . 729 . 234 2073 170 147 602 93 231 . 754 41 Explosive 1454 | . . . . . . 1191 . . . . . . . . . . . 243 . 20 . Electromagnetic 42 | . . . . . . 42 . . . . . . . . . . . . . . . Impact . | . . . . . . . . . . . . . . . . . . . . . . Slashing 371 | . . . . . . . . 371 . . . . . . . . . . . . . Piercing . | . . . . . . . . . . . . . . . . . . . . . . Highest Corruption 9 | . . . . . . 9 7 7 7 1 1 2 4 . . . . . 5 . . Average Corruption 4 | . . . . . . 5 6 7 7 1 1 1 2 . . . . . 5 . . Corruption Purged . | . . . . . . . . . . . . . . . . . . . . . . Corruption Blocked . | . . . . . . . . . . . . . . . . . . . . . . Effects 82 | . . . . . . 43 2 13 . 1 5 5 11 . . . . . 2 . . Message Errors 21 | . . . . . . 10 . 4 . . 2 1 3 . . . . . 1 . . Matter Fused 24 | . . . . . . 12 1 4 . . 1 2 3 . . . . . 1 . . Heat Flow Errors 9 | . . . . . . 6 . 1 . 1 . . 1 . . . . . . . . Energy Discharges 9 | . . . . . . 5 . 2 . . 1 . 1 . . . . . . . . Parts Rejected 2 | . . . . . . 2 . . . . . . . . . . . . . . . Parts Fused 1 | . . . . . . 1 . . . . . . . . . . . . . . . Data Loss (minor) 3 | . . . . . . 1 1 . . . 1 . . . . . . . . . . Data Loss (major) 1 | . . . . . . 1 . . . . . . . . . . . . . . . Misfires 5 | . . . . . . 3 . . . . . 1 1 . . . . . . . . Alerts 4 | . . . . . . 1 . 2 . . . . 1 . . . . . . . . Weapon Failures 3 | . . . . . . 1 . . . . . 1 1 . . . . . . . . Overload Shots 13 | . . . . . . . . . . . . . . . . . . 2 10 1 . Effects 1 | . . . . . . . . . . . . . . . . . . 1 . . . Heat Surge 1 | . . . . . . . . . . . . . . . . . . 1 . . . Overflow Damage 151 | . . . . . . 70 . 19 . 4 . . . . . . . 10 . 48 . Projectiles 26 | . . . . . . . . . . 4 . . . . . . . . . 22 . Explosions 93 | . . . . . . 70 . . . . . . . . . . . 10 . 13 . Melee 32 | . . . . . . . . 19 . . . . . . . . . . . 13 . Knockbacks 1 | . . . . . . . . . . . . . . . . . . . . 1 . Impact 1 | . . . . . . . . . . . . . . . . . . . . 1 . Kinetic . | . . . . . . . . . . . . . . . . . . . . . . Secondary . | . . . . . . . . . . . . . . . . . . . . . . Self-Inflicted Damage 131 | . . . . . . 47 3 . . . . . 4 . . . . . . 77 . Shots 2 | . . . . . . 1 . . . . . . . . . . . . . 1 . Rammed 39 | . . . . . 2 13 3 . . 19 . . 1 . . . . . . 1 . Targets Rammed 43 | . . . . . 3 15 3 . . 20 . . 1 . . . . . . 1 . Kicked . | . . . . . . . . . . . . . . . . . . . . . . Crushed 4 | . . . . . 1 2 . . . 1 . . . . . . . . . . . Highest Temperature 383 | . 174 63 . 205 30 383 9 178 . 283 . 144 269 228 108 337 102 195 345 351 52 Average Temperature 103 | . 55 30 . 67 15 128 9 106 . 97 . 70 94 120 66 155 52 107 90 142 21 Received Heat Transfer 1778 | . 264 63 . 114 . 339 162 45 . 72 . 54 196 18 . 66 . 10 174 183 18 Effects 8 | . . . . . . 3 . . . . . . . . . . . . . 5 . Energy Bleed 2 | . . . . . . 2 . . . . . . . . . . . . . . . Interference 4 | . . . . . . . . . . . . . . . . . . . . 4 . Matter Decay 2 | . . . . . . 1 . . . . . . . . . . . . . 1 . Siege Activations . | . . . . . . . . . . . . . . . . . . . . . . Martial Activations . | . . . . . . . . . . . . . . . . . . . . . . Shielding Activations . | . . . . . . . . . . . . . . . . . . . . . . Robots Disrupted . | . . . . . . . . . . . . . . . . . . . . . . Combat Hostiles . | . . . . . . . . . . . . . . . . . . . . . . Robots Corrupted . | . . . . . . . . . . . . . . . . . . . . . . Combat Hostiles . | . . . . . . . . . . . . . . . . . . . . . . Parts Fried 2 | . . . . . . 1 . . . . . . 1 . . . . . . . . Impact Corruptions 1 | . . . . . . . . . . . . . . . . . . . . 1 . Robots Melted 7 | . . . . . . 4 . . . 1 . . 1 . . 1 . . . . . Combat Hostiles 7 | . . . . . . 4 . . . 1 . . 1 . . 1 . . . . . Parts Melted 40 | . 1 . . 1 . 14 1 . . 4 . . 12 . . 6 . . . 1 . Heat Transferred 18483 | 275 875 249 . 870 218 6125 1675 . . 1066 . 370 3922 333 296 888 185 285 . 814 37 Parts Sabotaged . | . . . . . . . . . . . . . . . . . . . . . . Parts Stolen . | . . . . . . . . . . . . . . . . . . . . . . Parts Stripped . | . . . . . . . . . . . . . . . . . . . . . . Power Chain Reactions 1 | . . . . . . 1 . . . . . . . . . . . . . . . Alert | -11 -10 -10 -10 -9 -8 -7 -6 -6 -6 -5 -5 -5 -5 -4 -4 -4 -4 -3 -3 -2 -1 ------- Run | Yrd Mat Min Exi Min Mat Fac Fac Low Low Fac Was Fac Ext Fac Upp Upp Zhi Pro Res Res Acc Maximum Alert Level 2 | . . . . . . 2 1 . . . . 2 2 1 . . . . 1 . . Low Security (%) 70 | 100 100 100 . 100 100 69 . . . 100 100 52 . 41 . . . . 88 100 100 Level 1 18 | . . . . . . 17 100 . . . . 8 39 58 . . . . 11 . . Level 2 10 | . . . . . . 13 . . . . . 39 60 . . . . . . . . Level 3 . | . . . . . . . . . . . . . . . . . . . . . . Level 4 . | . . . . . . . . . . . . . . . . . . . . . . Level 5 . | . . . . . . . . . . . . . . . . . . . . . . High Security . | . . . . . . . . . . . . . . . . . . . . . . Max Security . | . . . . . . . . . . . . . . . . . . . . . . Peak Influence 619 | 15 95 13 . 80 45 608 352 . . 163 22 589 619 277 . . . . 217 134 61 Initial 278 | . . 13 . . 16 4 275 . . 163 22 . 278 277 . . . . 217 69 40 Average 139 | 2 41 1 . 22 15 143 288 . . 63 1 232 458 212 . . . . 165 61 19 Influence Increases 5419 | 40 185 45 . 225 94 1177 395 310 . 174 . 741 904 32 21 70 5 180 316 385 120 Destroy 0b10 Robot/C 2340 | . 140 40 . 140 40 660 140 60 . 100 . 360 420 20 20 60 . 100 . 40 . Destroy 0b10 Robot/NC 210 | 40 5 5 . . 5 65 15 . . . . 20 35 . . . 5 10 . 5 . Destroy Leader 514 | . 40 . . 30 10 186 30 10 . 40 . 62 66 10 . 10 . 10 . 10 . Allied During Kill 343 | . . . . . . . . . . . . 240 100 2 1 . . . . . . Trap Triggered on 0b10 20 | . . . . 10 10 . . . . . . . . . . . . . . . . Successful Hack 74 | . . . . . 14 . 14 . . . . 10 36 . . . . . . . . Disable Machine 270 | . . . . . . 135 . . . 15 . 30 15 . . . . . . 45 30 Destroy Structure 193 | . . . . . . 71 1 . . 4 . 4 22 . . . . . 16 60 15 Advance Influence 150 | . . . . . . . . . . . . . . . . . . . 150 . . Partial Spotted 180 | . . . . . . 15 45 . . 15 . 15 15 . . . . . . 75 . Lose Combat Pursuer 1125 | . . . . 45 15 45 150 240 . . . . 195 . . . . 60 150 150 75 Influence Decreases 5358 | 40 150 80 . 182 127 623 639 309 62 370 63 172 907 449 170 70 5 80 293 439 128 Entered New Map 1414 | . . 22 . . 27 6 289 119 62 96 41 . 291 289 56 . . . 33 54 29 Time Decay 3102 | 40 140 48 . 172 100 487 310 180 . 264 22 110 326 150 114 70 5 80 180 208 96 Lost Part 550 | . 10 10 . 10 . 130 40 10 . 10 . 10 50 10 . . . . 80 177 3 Lost Ally 292 | . . . . . . . . . . . . 52 240 . . . . . . . . Squads Dispatched 37 | . 3 . . 1 . 8 3 . . 1 . 5 3 2 . . . . 4 3 4 Investigation 10 | . 1 . . 1 . 1 . . . . . 2 2 1 . . . . 2 . . Extermination 11 | . . . . . . 4 1 . . 1 . 1 . 1 . . . . 1 1 1 Reinforcement 14 | . 2 . . . . 3 2 . . . . . 1 . . . . . 1 2 3 Assault . | . . . . . . . . . . . . . . . . . . . . . . Garrison 2 | . . . . . . . . . . . . 2 . . . . . . . . . Intercept . | . . . . . . . . . . . . . . . . . . . . . . Searches Triggered . | . . . . . . . . . . . . . . . . . . . . . . Construction Impeded . | . . . . . . . . . . . . . . . . . . . . . . Haulers Reinforced . | . . . . . . . . . . . . . . . . . . . . . . Active Scanning Responses . | . . . . . . . . . . . . . . . . . . . . . . Cargo Convoy Interrupts 1 | . . . . . . 1 . . . . . . . . . . . . . . . Stealth | -11 -10 -10 -10 -9 -8 -7 -6 -6 -6 -5 -5 -5 -5 -4 -4 -4 -4 -3 -3 -2 -1 --------- Run | Yrd Mat Min Exi Min Mat Fac Fac Low Low Fac Was Fac Ext Fac Upp Upp Zhi Pro Res Res Acc Distress Signals 15 | . 1 . . . . 1 4 . . . . 1 5 . . . . . 3 . . Communications Jammed 51 | . . . . . . . 40 . . . . . . . . . . . . 1 10 Distress Signals 51 | . . . . . . . 40 . . . . . . . . . . . . 1 10 Times Spotted 250 | . 12 2 . 10 7 50 25 19 . 6 . 5 38 1 . 3 . 13 24 25 10 Peak Tracking Total 12 | . 3 2 . 3 3 5 9 6 . 1 . 3 7 1 . 3 . 7 12 10 3 Tactical Retreats 34 | . . . . 2 1 2 5 7 . . . . 6 . . . . 3 3 3 2 Traps | -11 -10 -10 -10 -9 -8 -7 -6 -6 -6 -5 -5 -5 -5 -4 -4 -4 -4 -3 -3 -2 -1 ------- Run | Yrd Mat Min Exi Min Mat Fac Fac Low Low Fac Was Fac Ext Fac Upp Upp Zhi Pro Res Res Acc Traps Triggered 21 | . 1 . . . . 5 2 . . 5 . 1 3 . . . . . 2 2 . Indirectly . | . . . . . . . . . . . . . . . . . . . . . . Trap Hack Attempts . | . . . . . . . . . . . . . . . . . . . . . . Triggered . | . . . . . . . . . . . . . . . . . . . . . . Disarmed . | . . . . . . . . . . . . . . . . . . . . . . Reprogrammed . | . . . . . . . . . . . . . . . . . . . . . . Reused 2 | . . . . 1 1 . . . . . . . . . . . . . . . . Traps Extracted . | . . . . . . . . . . . . . . . . . . . . . . Installed 2 | . . . . 1 1 . . . . . . . . . . . . . . . . Triggered 2 | . . . . 1 1 . . . . . . . . . . . . . . . . Most Traps Carried 4 | . . 4 4 4 3 2 . . . . . . . . . . . . . . . Machines | -11 -10 -10 -10 -9 -8 -7 -6 -6 -6 -5 -5 -5 -5 -4 -4 -4 -4 -3 -3 -2 -1 ---------- Run | Yrd Mat Min Exi Min Mat Fac Fac Low Low Fac Was Fac Ext Fac Upp Upp Zhi Pro Res Res Acc Machines Disabled 22 | . . . . . . 9 . . . 1 . 2 2 . 2 . 1 . . 3 2 Max in Single Turn 4 | . . . . . . 4 . . . 1 . 1 1 . 1 . 1 . . 1 1 Garrison Access 1 | . . . . . . . . . . . . . . 1 . . . . . . . Machines Repaired . | . . . . . . . . . . . . . . . . . . . . . . Machines Dismantled 3 | . . . . . . . . . . . . . . . 1 . . . . . 2 Machines Sabotaged . | . . . . . . . . . . . . . . . . . . . . . . Overloaded Fab Kills . | . . . . . . . . . . . . . . . . . . . . . . Hacking | -11 -10 -10 -10 -9 -8 -7 -6 -6 -6 -5 -5 -5 -5 -4 -4 -4 -4 -3 -3 -2 -1 --------- Run | Yrd Mat Min Exi Min Mat Fac Fac Low Low Fac Was Fac Ext Fac Upp Upp Zhi Pro Res Res Acc Machines Accessed 36 | . . . . 1 1 2 1 1 . . . 6 10 3 2 1 4 . 2 2 . Terminals 20 | . . . . . 1 1 . . . . . 4 10 2 . . . . . 2 . Fabricators 2 | . . . . . . . 1 . . . . 1 . . . . . . . . . Repair Stations 2 | . . . . . . 1 . . . . . . . . . . . . 1 . . Recycling Units . | . . . . . . . . . . . . . . . . . . . . . . Scanalyzers 1 | . . . . . . . . . . . . 1 . . . . . . . . . Garrison Access 2 | . . . . . . . . . . . . . . 1 . . . . 1 . . Total Hacks 80 | . . . . 1 2 3 2 1 . . . 13 23 6 2 1 17 . 6 3 . Successful 46 | . . . . 1 2 . 1 1 . . . 9 9 2 2 1 17 . 1 . . Failed 34 | . . . . . . 3 1 . . . . 4 14 4 . . . . 5 3 . Catastrophic 6 | . . . . . . 1 . . . . . 2 2 . . . . . 1 . . Database Lockouts . | . . . . . . . . . . . . . . . . . . . . . . Manual 8 | . . . . . 2 3 . . . . . 2 . . . . . . . 1 . Terminals 40 | . . . . . 2 1 . . . . . 6 23 5 . . . . . 3 . Fabricators 3 | . . . . . . . 2 . . . . 1 . . . . . . . . . Repair Stations 6 | . . . . . . 2 . . . . . . . . . . . . 4 . . Recycling Units . | . . . . . . . . . . . . . . . . . . . . . . Scanalyzers 6 | . . . . . . . . . . . . 6 . . . . . . . . . Garrison Access 3 | . . . . . . . . . . . . . . 1 . . . . 2 . . Terminal Hacks 36 | . . . . 1 2 . . 1 . . . 2 9 1 2 1 17 . . . . Record 5 | . . . . . . . . . . . . . . . . . 5 . . . . Part Schematic 5 | . . . . . 1 . . . . . . . . . . . 4 . . . . Robot Analysis 5 | . . . . . 1 . . . . . . . . . . . 4 . . . . Prototype ID Bank 7 | . . . . . . . . . . . . 1 1 1 . . 4 . . . . Open Door 13 | . . . . 1 . . . 1 . . . 1 7 . 2 1 . . . . . Zone Layout 1 | . . . . . . . . . . . . . 1 . . . . . . . . Fabricator Hacks 2 | . . . . . . . 1 . . . . 1 . . . . . . . . . Build 2 | . . . . . . . 1 . . . . 1 . . . . . . . . . Repair Station Hacks 1 | . . . . . . . . . . . . . . . . . . . 1 . . Scan Component 1 | . . . . . . . . . . . . . . . . . . . 1 . . Recycling Unit Hacks . | . . . . . . . . . . . . . . . . . . . . . . Scanalyzer 6 | . . . . . . . . . . . . 6 . . . . . . . . . Retrieve Study 6 | . . . . . . . . . . . . 6 . . . . . . . . . Garrison Access Hacks 1 | . . . . . . . . . . . . . . 1 . . . . . . . Seal Access 1 | . . . . . . . . . . . . . . 1 . . . . . . . Unauthorized Hacks . | . . . . . . . . . . . . . . . . . . . . . . Terminals . | . . . . . . . . . . . . . . . . . . . . . . Fabricators . | . . . . . . . . . . . . . . . . . . . . . . Repair Stations . | . . . . . . . . . . . . . . . . . . . . . . Recycling Units . | . . . . . . . . . . . . . . . . . . . . . . Scanalyzers . | . . . . . . . . . . . . . . . . . . . . . . Garrison Access . | . . . . . . . . . . . . . . . . . . . . . . Data Cores Recovered 3 | . . . . . 1 . . . . . . 1 1 . . . . . . . . Used . | . . . . . . . . . . . . . . . . . . . . . . Hacking Detections 17 | . . . . . 1 2 1 . . . . 3 4 2 . . . . 2 2 . Full Trace Events 7 | . . . . . . 1 . . . . . 2 2 1 . . . . 1 . . Feedback Events 2 | . . . . . . . . . . . . 2 . . . . . . . . . Corruption 1 | . . . . . . . . . . . . 1 . . . . . . . . . Hackware Fried 1 | . . . . . . . . . . . . 1 . . . . . . . . . Feedback Blocked . | . . . . . . . . . . . . . . . . . . . . . . Robot Schematics Acquired . | . . . . . . . . . . . . . . . . . . . . . . Robots Built . | . . . . . . . . . . . . . . . . . . . . . . Authchips . | . . . . . . . . . . . . . . . . . . . . . . Time . | . . . . . . . . . . . . . . . . . . . . . . Total Robot Build Rating . | . . . . . . . . . . . . . . . . . . . . . . Part Schematics Acquired 5 | . . . . . 1 . . . . . . . . . . . 4 . . . . Parts Built 1 | . . . . . . . 1 . . . . . . . . . . . . . . Authchips . | . . . . . . . . . . . . . . . . . . . . . . Time 175 | . . . . . . . 58 . . . . 117 . . . . . . . . . Total Part Build Rating 7 | . . . . . . . 7 . . . . . . . . . . . . . . Part Studies Acquired 6 | . . . . . . . . . . . . 6 . . . . . . . . . Parts Repaired . | . . . . . . . . . . . . . . . . . . . . . . Time . | . . . . . . . . . . . . . . . . . . . . . . Parts Recycled . | . . . . . . . . . . . . . . . . . . . . . . Recycled Matter . | . . . . . . . . . . . . . . . . . . . . . . Retrieved Matter . | . . . . . . . . . . . . . . . . . . . . . . Retrieved Components . | . . . . . . . . . . . . . . . . . . . . . . Parts Scanalyzed . | . . . . . . . . . . . . . . . . . . . . . . Part Schematics Acquired . | . . . . . . . . . . . . . . . . . . . . . . Parts Damaged . | . . . . . . . . . . . . . . . . . . . . . . Bothacking | -11 -10 -10 -10 -9 -8 -7 -6 -6 -6 -5 -5 -5 -5 -4 -4 -4 -4 -3 -3 -2 -1 ------------ Run | Yrd Mat Min Exi Min Mat Fac Fac Low Low Fac Was Fac Ext Fac Upp Upp Zhi Pro Res Res Acc Used RIF Installer . | . . . . . . . . . . . . . . . . . . . . . . Robots Hacked . | . . . . . . . . . . . . . . . . . . . . . . Non-combat . | . . . . . . . . . . . . . . . . . . . . . . Combat . | . . . . . . . . . . . . . . . . . . . . . . Robot Hacks Applied . | . . . . . . . . . . . . . . . . . . . . . . Relay Couplers Released . | . . . . . . . . . . . . . . . . . . . . . . Fabnet Peak Effective % . | . . . . . . . . . . . . . . . . . . . . . . Robots Rewired 3 | . . . . . . . . . . . . . 3 . . . . . . . . Allies Hacked . | . . . . . . . . . . . . . . . . . . . . . . Hacks Repelled . | . . . . . . . . . . . . . . . . . . . . . . Allies | -11 -10 -10 -10 -9 -8 -7 -6 -6 -6 -5 -5 -5 -5 -4 -4 -4 -4 -3 -3 -2 -1 -------- Run | Yrd Mat Min Exi Min Mat Fac Fac Low Low Fac Was Fac Ext Fac Upp Upp Zhi Pro Res Res Acc Total Allies 32 | . . . . . . . . . . . 20 . 12 . . . . . . . . Largest Group 20 | . . . . . . . . . . . 20 20 6 1 1 . . . . . . Highest-Rated Group 782 | . . . . . . . . . . . 782 782 169 31 31 . . . . . . Highest-Rated Ally 159 | . . . . . . . . . . . 46 46 159 31 31 . . . . . . Total Orders . | . . . . . . . . . . . . . . . . . . . . . . Ally Attacks 254 | . . . . . . . . . . . . 129 123 . 2 . . . . . . Total Damage 5681 | . . . . . . . . . . . . 2884 2753 . 44 . . . . . . Kills 43 | . . . . . . . . . . . . 24 18 . 1 . . . . . . Allies Corrupted 1 | . . . . . . . . . . . . 1 . . . . . . . . . Allies Melted 2 | . . . . . . . . . . . . 1 1 . . . . . . . . Intel | -11 -10 -10 -10 -9 -8 -7 -6 -6 -6 -5 -5 -5 -5 -4 -4 -4 -4 -3 -3 -2 -1 ------- Run | Yrd Mat Min Exi Min Mat Fac Fac Low Low Fac Was Fac Ext Fac Upp Upp Zhi Pro Res Res Acc Active Infowar (turns) 9723 | 85 326 464 356 646 276 2309 498 92 15 599 390 389 737 315 392 347 113 215 361 472 326 Optics 4763 | . . . . . . . . 92 15 599 390 389 737 315 392 347 113 215 361 472 326 Sensors 1917 | . . . . . . . . . . . . . . 278 392 347 113 215 361 211 . Terrain 474 | . . . . . . . 474 . . . . . . . . . . . . . . Seismic 4487 | 85 326 464 356 646 276 2309 . . . . . . . 25 . . . . . . . Cloaking 237 | . . . . . . . . . . . . . . . . . . . . 29 208 Jamming 610 | . . . . . . . 236 . . . . . . . . . . . . 48 326 Robot Analysis Total 5 | . . . . . 1 . . . . . . . . . . . 4 . . . . Derelict Logs Recovered 3 | . . . . 1 . . . . . . . . . . . 2 . . . . . Drone Launches . | . . . . . . . . . . . . . . . . . . . . . . Drone Recoveries . | . . . . . . . . . . . . . . . . . . . . . . Exploration | -11 -10 -10 -10 -9 -8 -7 -6 -6 -6 -5 -5 -5 -5 -4 -4 -4 -4 -3 -3 -2 -1 ------------- Run | Yrd Mat Min Exi Min Mat Fac Fac Low Low Fac Was Fac Ext Fac Upp Upp Zhi Pro Res Res Acc Turns Passed 10402 | 249 326 464 356 656 276 2328 682 361 15 599 390 389 737 315 392 347 113 215 361 505 326 Spaces Moved 9091 | 146 146 237 223 350 140 1237 792 494 43 383 321 506 641 353 498 357 174 368 585 820 277 Core 671 | 4 . . . . . 17 214 435 . 1 . . . . . . . . . . . Treads 2071 | . . 136 223 350 140 1126 . . . 96 . . . . . . . . . . . Legs 389 | 142 146 101 . . . . . . . . . . . . . . . . . . . Wheels 432 | . . . . . . 94 151 . . 187 . . . . . . . . . . . Hover 5150 | . . . . . . . 170 . . 80 321 506 641 353 498 357 174 368 585 820 277 Flight 378 | . . . . . . . 257 59 43 19 . . . . . . . . . . . Fastest Speed 35 | 50 120 160 160 160 160 50 40 35 35 35 106 44 44 48 52 52 40 44 37 37 55 Average Speed 85 | 118 130 173 160 160 160 155 58 48 35 110 106 63 52 49 52 52 48 44 50 44 89 Slowest Speed 260 | 120 190 260 160 160 160 232 120 50 35 250 106 106 161 53 52 52 102 44 99 108 108 Overloaded Moves . | . . . . . . . . . . . . . . . . . . . . . . Propulsion Burnouts . | . . . . . . . . . . . . . . . . . . . . . . Robots Hopped 3 | . . . . . . . 3 . . . . . . . . . . . . . . Potential Cave-ins 3 | . . . . . . . . 3 . . . . . . . . . . . . . Cave-ins Triggered . | . . . . . . . . . . . . . . . . . . . . . . Teleports 1 | . . . . . . . . . . . . . . . . . . . 1 . . Exploration Rate (%) 38 | 6 28 42 55 73 15 45 19 66 7 9 96 22 73 7 60 52 61 59 22 29 10 Regions Visited 21 Branch Regions 10 Pre-discovered Areas 5 | . . 1 . 1 . . . . . . . . . . . . 3 . . . . Known Exits Taken 1 | . . . . . . . . . . . . . . . . . . 1 . . . Unknown Exits Taken 18 | 1 1 1 1 1 1 1 1 1 1 . . 1 1 1 1 1 1 . 1 1 . Scrap Searched 7 | . . 1 . 1 . . . 1 . . . . . . 2 2 . . . . . Spaces Dug 31 | . . . . . . 1 . 7 . . . . . . . . . . 5 15 3 Terrain Destroyed 174 | . . . . . . 73 . 7 . 1 . . 1 . . 5 . 51 10 19 7 Melee 8 | . . . . . . 1 . 7 . . . . . . . . . . . . . Projectile 33 | . . . . . . . . . . 1 . . 1 . . 5 . 3 10 6 7 AOE 133 | . . . . . . 72 . . . . . . . . . . . 48 . 13 . Terrain Rammed . | . . . . . . . . . . . . . . . . . . . . . . Walls Destroyed . | . . . . . . . . . . . . . . . . . . . . . . Machines Disabled . | . . . . . . . . . . . . . . . . . . . . . . Actions | -11 -10 -10 -10 -9 -8 -7 -6 -6 -6 -5 -5 -5 -5 -4 -4 -4 -4 -3 -3 -2 -1 --------- Run | Yrd Mat Min Exi Min Mat Fac Fac Low Low Fac Was Fac Ext Fac Upp Upp Zhi Pro Res Res Acc Total 11010 | 183 215 278 222 399 182 1487 943 590 42 509 372 559 958 483 618 497 196 404 633 915 325 Wait 1074 | 1 24 10 . 9 20 98 80 64 . 42 42 22 214 115 94 130 . 24 29 41 15 Move 9064 | 145 145 236 222 349 139 1236 785 493 42 383 320 505 640 352 497 356 173 367 584 819 276 Hop 3 | . . . . . . . 3 . . . . . . . . . . . . . . Pick Up 75 | 8 2 12 . 4 5 15 5 3 . 5 1 3 4 2 2 . 1 . . 3 . Fast Attach 102 | 7 . 2 . . . 8 12 3 . 23 1 5 7 3 3 . 9 . 5 14 . Attach 47 | . . 3 . 1 3 8 7 1 . 6 . 3 2 3 . . 1 1 2 5 1 Detach 8 | . . . . . . 1 2 . . 2 . . 1 1 . . . . . 1 . Swap 53 | . 4 2 . 4 2 19 2 . . . 3 1 2 3 4 2 1 2 1 1 . Drop 101 | 3 2 5 . 7 3 23 10 1 . 11 5 2 5 1 7 1 9 . 2 2 2 Fire 315 | 19 38 8 . 24 4 63 34 . . 17 . 5 36 3 2 8 2 7 10 26 9 Melee 26 | . . . . . . 1 . 25 . . . . . . . . . . . . . Ram 7 | . . . . . . . 3 . . 2 . . 1 . . . . . . 1 . Kick . | . . . . . . . . . . . . . . . . . . . . . . Crush 36 | . . . . . 3 15 . . . 18 . . . . . . . . . . . Escape Stasis 43 | . . . . . 2 . . . . . . 13 26 . . . . . . 2 . Rewire 23 | . . . . . . . . . . . . . 20 . . . . 3 . . . Trap 2 | . . . . 1 1 . . . . . . . . . . . . . . . . Miscellaneous 31 | . . . . . . . . . . . . . . . 9 . . . . . 22 Route ------- -11/Scrapyard -10/Materials -10/Mines -10/Exiles -9/Mines -8/Materials -7/Factory -6/Factory (discovered 2 exits: [*Fac] / *Low) -6/Lower Caves -6/Lower Caves -5/Factory -5/Waste -5/Factory (discovered 2 exits: *Fac / *Ext) -5/Extension (discovered 2 exits: *Fac / [*Cet]) -4/Factory -4/Upper Caves -4/Upper Caves (discovered 2 exits: Res / *Zhi) -4/Zhirov -3/Proximity Caves -3/Research -2/Research -1/Access To Epsilon Eridani History --------- Turn | Location | Event 13 | -11/Scrapyard | Discovered new exit (range 16) 250 | -11/Scrapyard | Entered Materials 305 | -10/Materials | Build established: Mutant 554 | -10/Materials | Discovered new exit (range 13) 576 | -10/Materials | Entered Mines 577 | -10/Mines | Learned location of Storage (-8) 594 | -10/Mines | Met a Derelict bent on vengeance 727 | -10/Mines | Found DCF Scrap (13 items) 755 | -10/Mines | Core integrity fell below 50% 900 | -10/Mines | Found a hidden stash of uninstalled traps 1013 | -10/Mines | Assembled infested the area 1034 | -10/Mines | Deemed a non-threat by the Exiles lab entrance 1034 | -10/Mines | Discovered new exit (range 5) 1040 | -10/Mines | Entered Exiles 1080 | -10/Exiles | Met 8R-AWN 1106 | -10/Exiles | Met EX-HEX 1157 | -10/Exiles | Met EX-BIN 1183 | -10/Exiles | Met EX-DEC 1381 | -10/Exiles | Discovered new exit (range 11) 1396 | -10/Exiles | Entered Mines 1431 | -9/Mines | Received a Rocket Launcher from a helpful Derelict 1779 | -9/Mines | Learned location of Zion (-6) 1799 | -9/Mines | Met a Derelict shopkeep closing up shop 2044 | -9/Mines | Discovered new exit (range 5) 2052 | -9/Mines | Entered Materials 2052 | -8/Materials | Evolved 4 slots: Propulsion x1, Utility x2, Weapon x1 2315 | -8/Materials | Discovered new exit (range 11) 2328 | -8/Materials | Entered Factory 2328 | -7/Factory | Evolved 2 slots: Propulsion x1, Weapon x1 2756 | -7/Factory | Build established: Gunner 3263 | -7/Factory | Build established: Scavenger-Tank 3861 | -7/Factory | Cargo convoy interrupted 4485 | -7/Factory | Lost 3 parts (3n) 4647 | -7/Factory | Discovered new exit (range 16) 4648 | -7/Factory | Released all parts (7) 4654 | -7/Factory | Core integrity fell below 50% 4656 | -7/Factory | Entered another Factory area 4656 | -6/Factory | Evolved 2 slots: Propulsion x1, Utility x1 4656 | -6/Factory | Discovered new exit (range 10) 4679 | -6/Factory | Lost 3 parts (1p2w) 4723 | -6/Factory | Fabricated Field Propulsion Array (x1) 4941 | -6/Factory | Build established: Mutant 5235 | -6/Factory | Released all parts (4) 5265 | -6/Factory | Lost 4 parts (1p2n1u) 5336 | -6/Factory | Discovered new exit (range 4) 5338 | -6/Factory | Entered Lower Caves 5386 | -6/Lower Caves | Core integrity fell below 50% 5459 | -6/Lower Caves | Core integrity fell below 20% 5529 | -6/Lower Caves | Spotted B-75 Beast 5600 | -6/Lower Caves | Encountered a Warlord checkpoint 5695 | -6/Lower Caves | Discovered new exit (range 12) 5699 | -6/Lower Caves | Entered another Lower Caves area 5711 | -6/Lower Caves | Discovered new exit (range 10) 5714 | -6/Lower Caves | Entered Factory 5714 | -5/Factory | Evolved 2 slots: Power x1, Utility x1 6284 | -5/Factory | Discovered new exit (range 6) 6313 | -5/Factory | Sucked down chute 6313 | -5/Factory | Entered Waste 6314 | -5/Waste | Joined by Warlord forces that had cleared the area 6617 | -5/Waste | Discovered new exit (range 13) 6703 | -5/Waste | Entered Factory 6703 | -5/Factory | Accompanied by 20 allies 6752 | -5/Factory | Build established: Derelict-Skirmisher 6908 | -5/Factory | Garrison activated, responded to threat 6917 | -5/Factory | Imp. Hacking Suite fried by hacking feedback 6981 | -5/Factory | Discovered new exit (range 19) 7088 | -5/Factory | Discovered new exit (range 6) 7092 | -5/Factory | Entered Extension 7092 | -5/Extension | Accompanied by 1 ally 7113 | -5/Extension | Rescued a captive Derelict 7113 | -5/Extension | Rescued a captive Derelict 7151 | -5/Extension | Rescued a captive Derelict 7155 | -5/Extension | Rescued a captive Derelict 7284 | -5/Extension | Spotted B-75 Beast 7339 | -5/Extension | Lost 4 allies 7357 | -5/Extension | Rescued A7 7387 | -5/Extension | Spotted B-75 Beast 7398 | -5/Extension | Destroyed B-75 Beast 7431 | -5/Extension | Rescued a captive Derelict 7595 | -5/Extension | Rescued a captive Derelict 7597 | -5/Extension | Rescued a captive Derelict 7620 | -5/Extension | Rescued a captive Derelict 7711 | -5/Extension | Lost 3 allies 7717 | -5/Extension | Disrupted transfer network 7809 | -5/Extension | Discovered new exit (range 10) 7809 | -5/Extension | Discovered new exit (range 6) 7829 | -5/Extension | Entered Factory 7829 | -4/Factory | Accompanied by 1 ally 7829 | -4/Factory | Evolved 2 slots: Propulsion x1, Utility x1 7923 | -4/Factory | Discovered new exit (range 16) 8144 | -4/Factory | Entered Upper Caves 8144 | -4/Upper Caves | Accompanied by 1 ally 8168 | -4/Upper Caves | Build established: Scavenger-Skirmisher 8187 | -4/Upper Caves | Entered an active Warlord outpost 8427 | -4/Upper Caves | Found Prototype Special Weapon 8427 | -4/Upper Caves | Identified Molecular Deconstructor 8458 | -4/Upper Caves | Discovered new exit (range 7) 8536 | -4/Upper Caves | Entered another Upper Caves area 8536 | -4/Upper Caves | Accompanied by 1 ally 8644 | -4/Upper Caves | Learned Research security intel 8715 | -4/Upper Caves | Identified exit to Research 8873 | -4/Upper Caves | Discovered new exit (range 20) 8883 | -4/Upper Caves | Entered Zhirov 8883 | -4/Zhirov | Discovered new exit (range 3) 8893 | -4/Zhirov | Met Zhirov 8902 | -4/Zhirov | Learned location of Quarantine (-3) 8902 | -4/Zhirov | Learned location of Testing (-2) 8902 | -4/Zhirov | Learned location of Command (-1) 8907 | -4/Zhirov | Zhirov requested help retrieving the SGEMP Prototype 8925 | -4/Zhirov | Found Alien Artifact 8925 | -4/Zhirov | Identified Integrated Dissipator 8925 | -4/Zhirov | Installed Integrated Dissipator, increased core heat dissipation (+20) 8978 | -4/Zhirov | Found Alien Artifact 8981 | -4/Zhirov | Build established: Tank 8996 | -4/Zhirov | Entered Proximity Caves 8999 | -3/Proximity Caves | Spotter reported a threat 9010 | -3/Proximity Caves | Attracted the attention of an 0b10 checkpoint 9121 | -3/Proximity Caves | Spotted B-86 Titan 9207 | -3/Proximity Caves | Discovered exit to Research (range 10) 9211 | -3/Proximity Caves | Entered Research 9211 | -3/Research | Evolved 2 slots: Propulsion x1, Utility x1 9449 | -3/Research | Identified Transdimensional Reconstructor 9449 | -3/Research | Warped through subspace 9564 | -3/Research | Discovered new exit (range 18) 9572 | -3/Research | Entered another Research area 9572 | -2/Research | Evolved 2 slots: Utility x2 9602 | -2/Research | Lost 5 parts (2p3u) 9628 | -2/Research | Spotted B-90 Cyclops 9720 | -2/Research | Lost 4 parts (2p1n1w) 9728 | -2/Research | Found Unknown Device 9728 | -2/Research | Identified Quantum Capacitor 9814 | -2/Research | Lost 5 parts (2n2u1w) 9976 | -2/Research | Lost 7 parts (3n1u3w) 10029 | -2/Research | Found Prototype Device 10029 | -2/Research | Identified Exp. Transmission Jammer 10052 | -2/Research | Spotted B-90 Cyclops 10053 | -2/Research | Discovered new exit (range 14) 10076 | -2/Research | Core integrity fell below 50% 10077 | -2/Research | Entered Access 10077 | -1/Access | Evolved 2 slots: Propulsion x1, Utility x1 10201 | -1/Access | Spotted B-99 Colossus 10400 | -1/Access | Discovered new exit (range 3) 10403 | *** | Escaped! Last Messages --------------- 10284_ Dropped Med. Storage Unit. 10285_ Imp. Cloaking Device destroyed. 10313_ U-05 Engineer builds a Wall. 10325_ ALERT: Potential suspicious activity detected, Programmers report to Access Zone 8Y. 10329_ W-44 Eye distress signal jammed. 10349_ K-01 Serf cleans the Terminal. 10356_ Dismantling Sealed Barrier with Imp. Plasma Cutter. 10360_ K-01 Serf cleans the Terminal. 10360_ Dismantling Sealed Barrier with Imp. Plasma Cutter. 10369_ K-01 Serf cleans the Terminal. 10370_ Dismantling Sealed Barrier with Imp. Plasma Cutter. 10373_ K-01 Serf cleans the Terminal. 10374_ Dismantling Sealed Barrier with Imp. Plasma Cutter. 10381_ K-01 Serf cleans the Terminal. 10382_ Dismantling Sealed Barrier with Imp. Plasma Cutter. 10386_ Sealed Barrier dismantled. 10390_ Dismantling Main Access Shell with Imp. Plasma Cutter. 10400_ Main Access Shell dismantled. 10400_ EXIT=FOUND Map ----- +----------------------------------------------------+ | ????????????????# ?# # ????????? | | ????????????????# ?# # ?????? | | ????????????????############## ################ | | ??????????????????????# | | ??????????????????????# | | ??????????????????????# | | ??????????????????????# | | ??????????????????????# ##########+############ | | ??????????????????????# ??????# # | | ??????????????????????# ???????# # ] | | ????????????????????? ????????# # | | ???????????????????? ????????# # ! | | ???????????????????# ?????????#"" # "" | | ???????????????????# ??????????#"" # "" | | ???????????????????# ??????????#"T # | | ?????????????????????????????????#"" # | | ?????????????????????????????????#"" # | | ?????????????????????????????????# # | | ?????????????????????????????????# # | | ?????????????????????????????????######### | | ???????????????????????????????????# !###+##+### | | ???????????????????????????????????# | | ??????????????????????""""""???????# | | ??????????????????????" "??#????# ########## | | ???????????????????#??" "" "? #????## ##????????? | | ???????????????????# ?" "@ "? #?????# #?????????? | | ???????????????????# " " #?????# #?????????? | | ???????????????????# "" " #?????# #?????????? | | ???????????????????# #?????# #?????????? | | ???????????????????# #?????# #?????????? | | ???????????????????""""" """"?????# #?????????? | | ???????????????????#"" #?????# #?????????? | | ???????????????????#"" #?????# #?????????? | | ???????????????????#"" #?????# #?????????? | | ???????????????????#T #?????# + ????????? | | ???????????????????#"" #?????# # ??????? | | ???????????????????#"" #?????# # """????? | | ????????????????####"" ####### #? " ??? | | ??????????? R #? ? | | ??????????# #?? | | ????????????##+###################### #???####### | | ????????????????????????????????????# #?????????? | | ????????????????????????????????????# #?????????? | | ????????????????????????????????????# #?????????? | | ????????????????????????????????????# #?????????? | | ???????????????????????????????????? #?????????? | | ???????????????????????????????????? +?????????? | | ???????????????????????????????????? #?????????? | | ???????????????????????????????????? #?????????? | | ???????????????????????????????????? #?????????? | +----------------------------------------------------+ Best States ------------- Heat Dissipation 128 Energy Generation 45 Energy Capacity 555 Matter Stores 300 Matter Capacity 300 Sight Range 20 Robot Scan Range 16 Terrain Scan Range 20 Terrain Scan Density 10 Jamming Range 22 Cloak Strength 3 Additional Mass Support 16 Armor Coverage 225 Weapon Cycling 20 Phase Shifting 5 Evasion (%) 63 Targeting Accuracy 8 Melee Accuracy 6 Recoil Reduction 4 Offensive Hacking 22 Item Schematics ----------------- Lrg. Storage Unit | -8/Materials | Hacked Assault Drone Bay | -4/Zhirov | Free Exp. Heat Sink | -4/Zhirov | Free Exp. Optical Array | -4/Zhirov | Free Imp. Arc Thrower | -4/Zhirov | Free Robot Schematics ------------------ None Fabricated ------------ Field Propulsion Array | x1 | -6/Factory | Preloaded Repaired ---------- Nothing Studied --------- Gyrokinetic Inverter | -5/Factory | Hacked Linear Gravjet | -5/Factory | Hacked Hover Unit | -5/Factory | Hacked Fission Core | -5/Factory | Hacked Variable Charge Gun | -5/Factory | Hacked Mic. Fission Core | -5/Factory | Hacked Alien Tech Used ----------------- Integrated Dissipator Transdimensional Reconstructor Achievements -------------- Into The Breach Challenges ------------ None Game ------ Seed BraceGrenadeBoregun Manual? 0 Play Time 01:20:02 Cumulative 238.3 hours Start 2025.10.23 @ 23:27:46 End 2025.10.24 @ 00:49:31 Sessions 1 Manual Loads 0 Difficulty Rogue Special Mode None Game No. 548 Rogue 548 Adventurer 0 Explorer 0 Win Type 0 Total 14 Types 10/0/2/1/1/0/0/0/0/0 Lore% 79 Gallery% 68 Achievement% 45 Wizard Run 0 Options --------- Layout 0 ASCII 0 Keyboard 0 Movement Numpad Keybinds 0 Fullscreen 2 Font 18/Terminus Map View 76x50 Zoom Use 0% Tactical HUD 1 Map Filters NONE Filters SATURATION(100) Steam 1 RUN: a2af8c9d-da42-45bb-939e-dc15b62ca4fd